[Event "*** Titled Tuesday Blitz"]
[Site "Chess.com"]
[Date "2020.05.26"]
[Round "6"]
[White "Andreikka"]
[Black "Artem_Sadovsky"]
[Result "1-0"]
[WhiteElo "2918"]
[BlackElo "2517"]
[TimeControl "180+1"]
[EndTime "11:05:42 PDT"]
[Termination "Andreikka won by resignation"]

1. d4 {[%clk 0:03:00.9]} 1... g6 {[%clk 0:02:58.4]} 2. e4 {[%clk 0:03:00]} 2...
Bg7 {[%clk 0:02:58.1]} 3. Nf3 {[%clk 0:03:00.6]} 3... d6 {[%clk 0:02:56.9]} 4.
Bc4 {[%clk 0:03:01]} 4... e6 {[%clk 0:02:56.7]} 5. Qe2 {[%clk 0:03:00.5]} 5...
Ne7 {[%clk 0:02:56.5]} 6. Bb3 {[%clk 0:03:01]} 6... h6 {[%clk 0:02:56.6]} 7. O-O
{[%clk 0:03:01.3]} 7... g5 {[%clk 0:02:54.6]} 8. c3 {[%clk 0:02:56.9]} 8... Nd7
{[%clk 0:02:51]} 9. Nbd2 {[%clk 0:02:56.2]} 9... Ng6 {[%clk 0:02:49.1]} 10. Rd1
{[%clk 0:02:54.5]} 10... g4 {[%clk 0:02:44.2]} 11. Ne1 {[%clk 0:02:54.1]} 11...
h5 {[%clk 0:02:43]} 12. Nf1 {[%clk 0:02:54.7]} 12... Bh6 {[%clk 0:02:29.4]} 13.
Bxh6 {[%clk 0:02:49.7]} 13... Rxh6 {[%clk 0:02:30.3]} 14. Qe3 {[%clk 0:02:45.5]}
14... Rh8 {[%clk 0:02:30.2]} 15. f4 {[%clk 0:02:42.9]} 15... Qf6 {[%clk
0:02:18.8]} 16. Nd3 {[%clk 0:02:38]} 16... b6 {[%clk 0:01:56.6]} 17. e5 {[%clk
0:02:29]} 17... Qe7 {[%clk 0:01:55.5]} 18. Ba4 {[%clk 0:02:27.9]} 18... a6
{[%clk 0:01:52.3]} 19. Bc6 {[%clk 0:02:26.2]} 19... Ra7 {[%clk 0:01:52.9]} 20.
Nd2 {[%clk 0:02:20.8]} 20... d5 {[%clk 0:01:51.5]} 21. c4 {[%clk 0:02:16.7]}
21... Bb7 {[%clk 0:01:48.4]} 22. Bxb7 {[%clk 0:02:13.4]} 22... Rxb7 {[%clk
0:01:48]} 23. cxd5 {[%clk 0:02:13.9]} 23... exd5 {[%clk 0:01:48.6]} 24. f5
{[%clk 0:02:14.6]} 24... Nh4 {[%clk 0:01:44.8]} 25. Rf1 {[%clk 0:02:07.6]} 25...
c5 {[%clk 0:01:30.7]} 26. Rae1 {[%clk 0:01:38.2]} 26... c4 {[%clk 0:01:28.7]}
27. f6 {[%clk 0:01:34]} 27... Qe6 {[%clk 0:01:08.8]} 28. Nf4 {[%clk 0:01:26.4]}
28... Qc6 {[%clk 0:01:03.5]} 29. e6 {[%clk 0:01:21.3]} 29... Nxf6 {[%clk
0:01:03.7]} 30. Qe5 {[%clk 0:01:21.8]} 30... Rh6 {[%clk 0:00:59.7]} 31. Qg5
{[%clk 0:01:20.7]} 1-0

[Event "*** Titled Tuesday Blitz"]
[Site "Chess.com"]
[Date "2020.05.26"]
[Round "6"]
[White "powermove"]
[Black "semchik73"]
[Result "0-1"]
[WhiteElo "1750"]
[BlackElo "2192"]
[TimeControl "180+1"]
[EndTime "11:05:46 PDT"]
[Termination "semchik73 won by resignation"]

1. Nf3 {[%clk 0:03:00.9]} 1... d5 {[%clk 0:02:59.4]} 2. g3 {[%clk 0:03:00.4]}
2... c6 {[%clk 0:02:59.7]} 3. Bg2 {[%clk 0:02:59.5]} 3... Nf6 {[%clk 0:03:00.1]}
4. O-O {[%clk 0:02:58.8]} 4... g6 {[%clk 0:03:00.6]} 5. d3 {[%clk 0:02:58.4]}
5... Bg7 {[%clk 0:03:01.1]} 6. Nbd2 {[%clk 0:02:58.4]} 6... O-O {[%clk
0:03:01.5]} 7. e4 {[%clk 0:02:57.7]} 7... Nbd7 {[%clk 0:03:01.3]} 8. Qe2 {[%clk
0:02:54.4]} 8... e5 {[%clk 0:02:49]} 9. h3 {[%clk 0:02:49.7]} 9... Re8 {[%clk
0:02:44.3]} 10. a4 {[%clk 0:02:36.2]} 10... a5 {[%clk 0:02:42.7]} 11. Re1 {[%clk
0:02:31.9]} 11... Nc5 {[%clk 0:02:41.4]} 12. Qe3 {[%clk 0:01:45]} 12... d4
{[%clk 0:02:22.1]} 13. Qe2 {[%clk 0:01:41.8]} 13... Nfd7 {[%clk 0:02:22.4]} 14.
Nc4 {[%clk 0:01:33.1]} 14... Qc7 {[%clk 0:02:21.7]} 15. Nh2 {[%clk 0:01:24.8]}
15... b5 {[%clk 0:02:21.5]} 16. axb5 {[%clk 0:01:20.4]} 16... cxb5 {[%clk
0:02:21.8]} 17. Na3 {[%clk 0:01:12.4]} 17... Ba6 {[%clk 0:02:16.8]} 18. f4
{[%clk 0:01:09.8]} 18... b4 {[%clk 0:02:15.9]} 19. Nc4 {[%clk 0:01:07.5]} 19...
Bxc4 {[%clk 0:02:15.9]} 20. dxc4 {[%clk 0:01:07.4]} 20... Ne6 {[%clk 0:02:10.6]}
21. f5 {[%clk 0:01:01.2]} 21... Nec5 {[%clk 0:02:08.4]} 22. Ng4 {[%clk 0:00:49]}
22... a4 {[%clk 0:02:08.2]} 23. f6 {[%clk 0:00:43.5]} 23... Nxf6 {[%clk
0:02:07.1]} 24. Nh6+ {[%clk 0:00:37.3]} 24... Kh8 {[%clk 0:02:04.2]} 25. Rf1
{[%clk 0:00:35.6]} 25... Rf8 {[%clk 0:02:00.3]} 26. g4 {[%clk 0:00:22.8]} 26...
Ne6 {[%clk 0:01:54.6]} 27. g5 {[%clk 0:00:19]} 27... Nh5 {[%clk 0:01:54.4]} 28.
Qf2 {[%clk 0:00:14.9]} 28... Nhf4 {[%clk 0:01:53.4]} 29. Bxf4 {[%clk 0:00:13.3]}
29... Nxf4 {[%clk 0:01:53.3]} 30. Bf3 {[%clk 0:00:12.4]} 30... Nxh3+ {[%clk
0:01:52.1]} 0-1

[Event "*** Titled Tuesday Blitz"]
[Site "Chess.com"]
[Date "2020.05.26"]
[Round "6"]
[White "H3nriqueTV"]
[Black "pedro_nascimento85"]
[Result "1-0"]
[WhiteElo "2197"]
[BlackElo "1870"]
[TimeControl "180+1"]
[EndTime "11:05:50 PDT"]
[Termination "H3nriqueTV won by resignation"]

1. e4 {[%clk 0:02:59.7]} 1... e6 {[%clk 0:02:58.9]} 2. d4 {[%clk 0:02:59.7]}
2... d5 {[%clk 0:02:57.6]} 3. e5 {[%clk 0:03:00.2]} 3... c5 {[%clk 0:02:55.2]}
4. c3 {[%clk 0:03:00.7]} 4... Nc6 {[%clk 0:02:52.7]} 5. Nf3 {[%clk 0:03:00.7]}
5... Qb6 {[%clk 0:02:52.1]} 6. Bd3 {[%clk 0:03:00.7]} 6... Bd7 {[%clk
0:02:47.6]} 7. O-O {[%clk 0:03:00.4]} 7... cxd4 {[%clk 0:02:46.8]} 8. cxd4
{[%clk 0:03:01.3]} 8... Nxd4 {[%clk 0:02:44.7]} 9. Nbd2 {[%clk 0:03:00.1]} 9...
Nxf3+ {[%clk 0:02:36.4]} 10. Nxf3 {[%clk 0:03:01]} 10... Ne7 {[%clk 0:02:35.1]}
11. Be3 {[%clk 0:03:00.7]} 11... Qd8 {[%clk 0:02:33.2]} 12. Ng5 {[%clk
0:02:56.9]} 12... Ng6 {[%clk 0:02:25.1]} 13. f4 {[%clk 0:02:53.1]} 13... Be7
{[%clk 0:02:23.6]} 14. Qh5 {[%clk 0:02:52.8]} 14... Bxg5 {[%clk 0:02:18.2]} 15.
fxg5 {[%clk 0:02:52.7]} 15... O-O {[%clk 0:02:15.4]} 16. Rf6 {[%clk 0:02:43.5]}
16... a6 {[%clk 0:01:45.3]} 17. Raf1 {[%clk 0:02:42.6]} 17... Bb5 {[%clk
0:01:41.8]} 18. Bxb5 {[%clk 0:02:35.5]} 18... axb5 {[%clk 0:01:40.4]} 19. R1f3
{[%clk 0:02:31.7]} 19... Re8 {[%clk 0:01:37.7]} 20. Rxf7 {[%clk 0:02:31.4]}
20... Re7 {[%clk 0:01:35.8]} 21. R7f6 {[%clk 0:01:05]} 21... gxf6 {[%clk
0:01:29]} 22. gxf6 {[%clk 0:01:04.6]} 22... Rf7 {[%clk 0:01:28.8]} 23. Rg3
{[%clk 0:01:04.8]} 23... d4 {[%clk 0:01:22.5]} 24. Rxg6+ {[%clk 0:01:03.7]}
24... hxg6 {[%clk 0:01:21]} 25. Qxg6+ {[%clk 0:01:04.1]} 25... Kf8 {[%clk
0:01:20.9]} 26. Bh6+ {[%clk 0:01:02.4]} 26... Ke8 {[%clk 0:01:20.3]} 27. Qg8+
{[%clk 0:01:02.7]} 27... Kd7 {[%clk 0:01:20.2]} 28. Qxf7+ {[%clk 0:01:03.2]}
28... Kc8 {[%clk 0:01:16.6]} 29. Qxe6+ {[%clk 0:01:03.5]} 29... Qd7 {[%clk
0:01:16.8]} 30. Qg8+ {[%clk 0:00:59.3]} 30... Qd8 {[%clk 0:01:14.5]} 31. f7
{[%clk 0:00:59.6]} 31... Kc7 {[%clk 0:01:13]} 32. f8=Q {[%clk 0:00:56.2]} 32...
Qxf8 {[%clk 0:01:10]} 33. Bxf8 {[%clk 0:00:57.1]} 1-0

[Event "*** Titled Tuesday Blitz"]
[Site "Chess.com"]
[Date "2020.05.26"]
[Round "6"]
[White "crescentmoon2411"]
[Black "Sadykov_Ramil"]
[Result "1-0"]
[WhiteElo "2757"]
[BlackElo "2491"]
[TimeControl "180+1"]
[EndTime "11:05:52 PDT"]
[Termination "crescentmoon2411 won by resignation"]

1. e4 {[%clk 0:03:00.9]} 1... c5 {[%clk 0:02:52.6]} 2. c3 {[%clk 0:03:00.6]}
2... Nf6 {[%clk 0:02:45.6]} 3. e5 {[%clk 0:03:00.5]} 3... Nd5 {[%clk 0:02:45]}
4. Bc4 {[%clk 0:02:58.9]} 4... Nb6 {[%clk 0:02:32.8]} 5. Bb3 {[%clk 0:02:58.6]}
5... d5 {[%clk 0:02:31.5]} 6. d4 {[%clk 0:02:57.1]} 6... cxd4 {[%clk 0:02:22.5]}
7. cxd4 {[%clk 0:02:58]} 7... Nc6 {[%clk 0:02:20.3]} 8. Nc3 {[%clk 0:02:57]}
8... Bf5 {[%clk 0:02:16.1]} 9. Nge2 {[%clk 0:02:54.1]} 9... e6 {[%clk
0:02:09.9]} 10. Ng3 {[%clk 0:02:53.4]} 10... Bg6 {[%clk 0:02:09.4]} 11. h4
{[%clk 0:02:53.2]} 11... h5 {[%clk 0:01:56.6]} 12. Bg5 {[%clk 0:02:47]} 12...
Be7 {[%clk 0:01:56.3]} 13. Bxe7 {[%clk 0:02:41.3]} 13... Qxe7 {[%clk 0:01:57.2]}
14. Nce2 {[%clk 0:02:29.1]} 14... Rc8 {[%clk 0:01:19.6]} 15. Rc1 {[%clk
0:02:20]} 15... Qb4+ {[%clk 0:01:10]} 16. Qd2 {[%clk 0:02:08]} 16... Qxd2+
{[%clk 0:00:56.5]} 17. Kxd2 {[%clk 0:02:08.9]} 17... Ke7 {[%clk 0:00:36]} 18.
Rc3 {[%clk 0:02:04.7]} 18... Na5 {[%clk 0:00:33.2]} 19. Rhc1 {[%clk 0:02:00]}
19... Nxb3+ {[%clk 0:00:30.6]} 20. axb3 {[%clk 0:01:59.8]} 20... Rxc3 {[%clk
0:00:09.7]} 21. Rxc3 {[%clk 0:01:57.8]} 21... Rc8 {[%clk 0:00:08]} 22. Rxc8
{[%clk 0:01:56.1]} 22... Nxc8 {[%clk 0:00:08]} 23. Nf4 {[%clk 0:01:57]} 23...
Bb1 {[%clk 0:00:05.7]} 24. Ngxh5 {[%clk 0:01:56]} 24... g6 {[%clk 0:00:05.3]}
25. Nf6 {[%clk 0:01:56.2]} 25... Nb6 {[%clk 0:00:04.9]} 26. Kc1 {[%clk
0:01:52.8]} 26... Ba2 {[%clk 0:00:03.3]} 27. Kc2 {[%clk 0:01:53]} 27... a5
{[%clk 0:00:03.7]} 28. g4 {[%clk 0:01:52]} 28... a4 {[%clk 0:00:03.9]} 29. bxa4
{[%clk 0:01:52.2]} 29... Nxa4 {[%clk 0:00:03.6]} 30. b3 {[%clk 0:01:50.4]} 30...
Nb6 {[%clk 0:00:02.4]} 1-0

[Event "*** Titled Tuesday Blitz"]
[Site "Chess.com"]
[Date "2020.05.26"]
[Round "6"]
[White "Gennady_Kozlov"]
[Black "SameerMujumdar"]
[Result "1-0"]
[WhiteElo "2562"]
[BlackElo "2316"]
[TimeControl "180+1"]
[EndTime "11:05:54 PDT"]
[Termination "Gennady_Kozlov won by resignation"]

1. b3 {[%clk 0:03:00.9]} 1... Nf6 {[%clk 0:02:57.5]} 2. Bb2 {[%clk 0:03:01.8]}
2... d6 {[%clk 0:02:56.5]} 3. e3 {[%clk 0:03:02.7]} 3... Nbd7 {[%clk 0:02:55.8]}
4. f4 {[%clk 0:03:02.7]} 4... e5 {[%clk 0:02:55.8]} 5. Nf3 {[%clk 0:03:03.1]}
5... exf4 {[%clk 0:02:55.4]} 6. exf4 {[%clk 0:03:04]} 6... Be7 {[%clk
0:02:55.3]} 7. Be2 {[%clk 0:03:04]} 7... O-O {[%clk 0:02:55.4]} 8. O-O {[%clk
0:03:04.9]} 8... Re8 {[%clk 0:02:53]} 9. Qe1 {[%clk 0:03:03]} 9... Nf8 {[%clk
0:02:50.9]} 10. Bd3 {[%clk 0:03:00.9]} 10... Ng6 {[%clk 0:02:48.9]} 11. Bxg6
{[%clk 0:02:59.1]} 11... fxg6 {[%clk 0:02:41.9]} 12. Nc3 {[%clk 0:02:58.7]}
12... Bf5 {[%clk 0:02:39.1]} 13. d3 {[%clk 0:02:57.7]} 13... c6 {[%clk
0:02:36.3]} 14. Nd4 {[%clk 0:02:55.9]} 14... Bd7 {[%clk 0:02:35.5]} 15. Qd2
{[%clk 0:02:53.5]} 15... Bf8 {[%clk 0:02:33.4]} 16. Rae1 {[%clk 0:02:49.7]}
16... c5 {[%clk 0:02:23.4]} 17. Nf3 {[%clk 0:02:41.9]} 17... Bc6 {[%clk
0:02:19.8]} 18. Ng5 {[%clk 0:02:41.4]} 18... Qd7 {[%clk 0:02:17.5]} 19. Nce4
{[%clk 0:02:40]} 19... Nxe4 {[%clk 0:02:16.4]} 20. Nxe4 {[%clk 0:02:38.8]} 20...
Re6 {[%clk 0:02:06.5]} 21. Ng5 {[%clk 0:02:36.6]} 21... Rxe1 {[%clk 0:02:05.9]}
22. Rxe1 {[%clk 0:02:36.3]} 22... Re8 {[%clk 0:02:01.6]} 23. Kf2 {[%clk
0:02:34]} 23... h6 {[%clk 0:01:56.6]} 24. Rxe8 {[%clk 0:02:28.5]} 24... Qxe8
{[%clk 0:01:57]} 25. Nf3 {[%clk 0:02:29]} 25... Qe6 {[%clk 0:01:48]} 26. Qe3
{[%clk 0:02:27.2]} 26... Qxe3+ {[%clk 0:01:39.1]} 27. Kxe3 {[%clk 0:02:28.1]}
27... Kf7 {[%clk 0:01:38.3]} 28. g3 {[%clk 0:02:23]} 28... Be7 {[%clk
0:01:38.2]} 29. Nd2 {[%clk 0:02:19.6]} 29... b5 {[%clk 0:01:33.8]} 30. d4 {[%clk
0:02:18.9]} 30... Bf6 {[%clk 0:01:30]} 31. Kd3 {[%clk 0:02:18.3]} 31... Bg2
{[%clk 0:01:11.4]} 32. c4 {[%clk 0:02:17.1]} 32... a6 {[%clk 0:01:09.1]} 33. Bc3
{[%clk 0:02:13.8]} 33... b4 {[%clk 0:01:02.1]} 34. Bb2 {[%clk 0:02:13.1]} 34...
a5 {[%clk 0:00:59.8]} 35. Ke3 {[%clk 0:02:09.6]} 35... g5 {[%clk 0:00:55.9]} 36.
Kf2 {[%clk 0:01:46.1]} 36... Bb7 {[%clk 0:00:53.8]} 37. Ke3 {[%clk 0:01:45]}
37... gxf4+ {[%clk 0:00:53.2]} 38. gxf4 {[%clk 0:01:43.3]} 38... Kg6 {[%clk
0:00:53]} 39. Ne4 {[%clk 0:01:42]} 39... Bxe4 {[%clk 0:00:47.4]} 40. Kxe4 {[%clk
0:01:42.9]} 40... Bxd4 {[%clk 0:00:45.2]} 41. Bxd4 {[%clk 0:01:41.2]} 41... cxd4
{[%clk 0:00:46.1]} 42. Kxd4 {[%clk 0:01:41.3]} 42... Kf5 {[%clk 0:00:46.6]} 43.
Kd5 {[%clk 0:01:41.6]} 43... Kxf4 {[%clk 0:00:43.1]} 44. Kxd6 {[%clk 0:01:42.5]}
44... g5 {[%clk 0:00:43.2]} 45. c5 {[%clk 0:01:42.6]} 45... h5 {[%clk
0:00:43.6]} 46. c6 {[%clk 0:01:43.1]} 46... g4 {[%clk 0:00:44.5]} 47. c7 {[%clk
0:01:43.7]} 47... h4 {[%clk 0:00:45.2]} 48. c8=Q {[%clk 0:01:43.3]} 48... g3
{[%clk 0:00:46.1]} 1-0

[Event "*** Titled Tuesday Blitz"]
[Site "Chess.com"]
[Date "2020.05.26"]
[Round "6"]
[White "kuban1991"]
[Black "DariaVoit"]
[Result "1-0"]
[WhiteElo "2715"]
[BlackElo "2497"]
[TimeControl "180+1"]
[EndTime "11:05:56 PDT"]
[Termination "kuban1991 won by resignation"]

1. Nf3 {[%clk 0:03:00.9]} 1... Nf6 {[%clk 0:02:59.7]} 2. g3 {[%clk 0:03:01]}
2... g6 {[%clk 0:03:00.1]} 3. Bg2 {[%clk 0:03:01.5]} 3... Bg7 {[%clk 0:03:00.8]}
4. O-O {[%clk 0:03:02]} 4... O-O {[%clk 0:03:01.4]} 5. c4 {[%clk 0:03:02.6]}
5... c6 {[%clk 0:03:01.2]} 6. Nc3 {[%clk 0:03:02.5]} 6... d5 {[%clk 0:03:01.7]}
7. cxd5 {[%clk 0:03:03.4]} 7... cxd5 {[%clk 0:03:02.3]} 8. d4 {[%clk 0:03:03.9]}
8... Nc6 {[%clk 0:02:59.5]} 9. Bf4 {[%clk 0:03:04.3]} 9... h6 {[%clk 0:02:50.6]}
10. Rc1 {[%clk 0:03:03.7]} 10... g5 {[%clk 0:02:50.2]} 11. Be3 {[%clk
0:02:55.8]} 11... Bf5 {[%clk 0:02:49.6]} 12. Ne5 {[%clk 0:02:53.1]} 12... Rc8
{[%clk 0:02:45.5]} 13. f4 {[%clk 0:02:50.3]} 13... g4 {[%clk 0:02:40.4]} 14. Bf2
{[%clk 0:02:20]} 14... e6 {[%clk 0:02:32.2]} 15. e3 {[%clk 0:02:18.1]} 15... h5
{[%clk 0:02:19.4]} 16. Qb3 {[%clk 0:01:59.8]} 16... Na5 {[%clk 0:02:15.5]} 17.
Qa3 {[%clk 0:01:59.7]} 17... a6 {[%clk 0:02:03.7]} 18. Rfd1 {[%clk 0:01:52.1]}
18... Re8 {[%clk 0:02:02.5]} 19. Bf1 {[%clk 0:01:48.5]} 19... Bf8 {[%clk
0:02:02.3]} 20. Qa4 {[%clk 0:01:44.1]} 20... b5 {[%clk 0:01:32.1]} 21. Nxb5
{[%clk 0:01:42.5]} 21... Rxc1 {[%clk 0:01:29.1]} 22. Rxc1 {[%clk 0:01:43.4]}
22... axb5 {[%clk 0:01:29.6]} 23. Bxb5 {[%clk 0:01:41.6]} 23... Re7 {[%clk
0:01:29.6]} 24. Be1 {[%clk 0:01:35.9]} 24... Ra7 {[%clk 0:00:57.4]} 25. b4
{[%clk 0:01:31.8]} 25... Rc7 {[%clk 0:00:56]} 26. Qxa5 {[%clk 0:01:23]} 26...
Rxc1 {[%clk 0:00:33.2]} 27. Qxd8 {[%clk 0:01:22.5]} 27... Rxe1+ {[%clk
0:00:33.8]} 28. Kf2 {[%clk 0:01:22.4]} 28... Ra1 {[%clk 0:00:33.6]} 29. Qxf6
{[%clk 0:01:20.3]} 29... Rxa2+ {[%clk 0:00:33.8]} 30. Be2 {[%clk 0:01:18.6]} 1-0

[Event "*** Titled Tuesday Blitz"]
[Site "Chess.com"]
[Date "2020.05.26"]
[Round "6"]
[White "MiroVlasenko"]
[Black "Onischuk_V"]
[Result "0-1"]
[WhiteElo "2674"]
[BlackElo "2894"]
[TimeControl "180+1"]
[EndTime "11:05:58 PDT"]
[Termination "Onischuk_V won by resignation"]

1. e4 {[%clk 0:03:00.9]} 1... d6 {[%clk 0:02:59]} 2. Nc3 {[%clk 0:02:59.8]} 2...
Nf6 {[%clk 0:02:59.6]} 3. f4 {[%clk 0:02:59]} 3... g6 {[%clk 0:03:00.2]} 4. Nf3
{[%clk 0:02:59]} 4... Bg7 {[%clk 0:03:00.8]} 5. d4 {[%clk 0:02:59.1]} 5... O-O
{[%clk 0:03:01.4]} 6. Bd3 {[%clk 0:02:58.9]} 6... Na6 {[%clk 0:03:01.7]} 7. O-O
{[%clk 0:02:58.3]} 7... c5 {[%clk 0:03:02.3]} 8. d5 {[%clk 0:02:58.7]} 8... Bg4
{[%clk 0:03:01.9]} 9. h3 {[%clk 0:02:56.1]} 9... Bxf3 {[%clk 0:03:02.2]} 10.
Qxf3 {[%clk 0:02:55.5]} 10... Nb4 {[%clk 0:03:02.4]} 11. a3 {[%clk 0:02:53.7]}
11... Nxd3 {[%clk 0:03:01.7]} 12. cxd3 {[%clk 0:02:54.6]} 12... Qb6 {[%clk
0:02:59.6]} 13. Qf2 {[%clk 0:02:50.3]} 13... Nd7 {[%clk 0:02:54.7]} 14. Be3
{[%clk 0:02:45.2]} 14... Qb3 {[%clk 0:02:49.6]} 15. h4 {[%clk 0:02:31]} 15...
Nf6 {[%clk 0:02:45]} 16. Qe2 {[%clk 0:02:15.2]} 16... h5 {[%clk 0:02:44.1]} 17.
Kh1 {[%clk 0:02:12.9]} 17... Ng4 {[%clk 0:02:44]} 18. Bg1 {[%clk 0:02:12.5]}
18... Bxc3 {[%clk 0:02:25.7]} 19. bxc3 {[%clk 0:02:10.2]} 19... Qxc3 {[%clk
0:02:26.3]} 20. e5 {[%clk 0:01:50.4]} 20... dxe5 {[%clk 0:02:20.3]} 21. Rac1
{[%clk 0:01:42.5]} 21... Qb3 {[%clk 0:02:13.5]} 22. Rxc5 {[%clk 0:01:40.1]}
22... Rad8 {[%clk 0:02:07.7]} 23. f5 {[%clk 0:01:34]} 23... Rxd5 {[%clk
0:02:05.5]} 24. fxg6 {[%clk 0:01:32.3]} 24... Rxc5 {[%clk 0:01:56.8]} 25. gxf7+
{[%clk 0:01:27.4]} 25... Rxf7 {[%clk 0:01:55]} 26. Bxc5 {[%clk 0:01:19.7]} 26...
b6 {[%clk 0:01:48.4]} 27. Bg1 {[%clk 0:01:14.3]} 27... Rxf1 {[%clk 0:01:40.4]}
28. Qxf1 {[%clk 0:01:13.8]} 28... Qf7 {[%clk 0:01:41.1]} 29. Qc1 {[%clk
0:01:09]} 29... Qf6 {[%clk 0:01:36.2]} 30. Qe1 {[%clk 0:00:49.4]} 30... Kg7
{[%clk 0:01:35.4]} 31. a4 {[%clk 0:00:44.4]} 31... a6 {[%clk 0:01:26.9]} 32. Qg3
{[%clk 0:00:35.4]} 32... b5 {[%clk 0:01:25.7]} 33. axb5 {[%clk 0:00:30.8]} 33...
axb5 {[%clk 0:01:25.6]} 0-1

[Event "*** Titled Tuesday Blitz"]
[Site "Chess.com"]
[Date "2020.05.26"]
[Round "6"]
[White "gena217"]
[Black "Gabix_94"]
[Result "1/2-1/2"]
[WhiteElo "2854"]
[BlackElo "2922"]
[TimeControl "180+1"]
[EndTime "11:06:01 PDT"]
[Termination "Game drawn by agreement"]

1. e4 {[%clk 0:03:00.9]} 1... e5 {[%clk 0:02:58.1]} 2. Nf3 {[%clk 0:03:01.2]}
2... Nc6 {[%clk 0:02:57.5]} 3. Bb5 {[%clk 0:03:01.8]} 3... a6 {[%clk 0:02:57.7]}
4. Ba4 {[%clk 0:03:01.8]} 4... Nf6 {[%clk 0:02:57.9]} 5. O-O {[%clk 0:03:00.3]}
5... b5 {[%clk 0:02:58]} 6. Bb3 {[%clk 0:03:00.6]} 6... Bb7 {[%clk 0:02:58.6]}
7. d3 {[%clk 0:02:59.3]} 7... Be7 {[%clk 0:02:57.5]} 8. a4 {[%clk 0:02:50.9]}
8... O-O {[%clk 0:02:56.6]} 9. Nc3 {[%clk 0:02:50.8]} 9... Na5 {[%clk
0:02:55.5]} 10. Ba2 {[%clk 0:02:35.8]} 10... b4 {[%clk 0:02:51.8]} 11. Ne2
{[%clk 0:02:35.9]} 11... b3 {[%clk 0:02:48.6]} 12. cxb3 {[%clk 0:02:34.2]} 12...
d5 {[%clk 0:02:46.4]} 13. Nxe5 {[%clk 0:02:25.6]} 13... dxe4 {[%clk 0:02:43.8]}
14. dxe4 {[%clk 0:02:10.1]} 14... Nxe4 {[%clk 0:02:37.5]} 15. Be3 {[%clk
0:01:46.6]} 15... Bd6 {[%clk 0:02:26.2]} 16. Nc4 {[%clk 0:01:39.4]} 16... Nxc4
{[%clk 0:02:22.8]} 17. bxc4 {[%clk 0:01:40.3]} 17... Qf6 {[%clk 0:02:17.3]} 18.
Ng3 {[%clk 0:01:34.6]} 18... Rad8 {[%clk 0:02:14.7]} 19. Qg4 {[%clk 0:01:25.9]}
19... Rfe8 {[%clk 0:02:06.2]} 20. Nh5 {[%clk 0:01:11.6]} 20... Qg6 {[%clk
0:02:01.5]} 21. Qxg6 {[%clk 0:01:11.5]} 21... hxg6 {[%clk 0:02:02.4]} 22. Ng3
{[%clk 0:01:12.1]} 22... Nxg3 {[%clk 0:01:54.1]} 23. hxg3 {[%clk 0:01:13]} 23...
Bxg3 {[%clk 0:01:54.7]} 24. b4 {[%clk 0:01:05.2]} 24... Be5 {[%clk 0:01:45.3]}
25. Rad1 {[%clk 0:01:04.2]} 25... Be4 {[%clk 0:01:37.9]} 26. Bb1 {[%clk
0:00:54.6]} 26... Bxb1 {[%clk 0:01:34]} 27. Rxb1 {[%clk 0:00:55.5]} 27... Rd3
{[%clk 0:01:33]} 28. Rfd1 {[%clk 0:00:50.3]} 28... Ra3 {[%clk 0:01:29.9]} 29. a5
{[%clk 0:00:47.7]} 29... Rb8 {[%clk 0:01:25.4]} 30. Bc5 {[%clk 0:00:43]} 30...
g5 {[%clk 0:01:21.2]} 31. g3 {[%clk 0:00:41.5]} 31... g4 {[%clk 0:01:19.5]} 32.
Kg2 {[%clk 0:00:41.4]} 32... f6 {[%clk 0:01:17.3]} 1/2-1/2

[Event "*** Titled Tuesday Blitz"]
[Site "Chess.com"]
[Date "2020.05.26"]
[Round "6"]
[White "nitpicker"]
[Black "ChessMavenYeti"]
[Result "1-0"]
[WhiteElo "2286"]
[BlackElo "2098"]
[TimeControl "180+1"]
[EndTime "11:06:03 PDT"]
[Termination "nitpicker won by checkmate"]

1. d4 {[%clk 0:03:00.9]} 1... e6 {[%clk 0:02:23.2]} 2. c4 {[%clk 0:02:59.5]}
2... Nf6 {[%clk 0:02:21]} 3. g3 {[%clk 0:02:56.9]} 3... c5 {[%clk 0:02:19.5]} 4.
d5 {[%clk 0:02:56.4]} 4... exd5 {[%clk 0:02:19.9]} 5. cxd5 {[%clk 0:02:56.6]}
5... d6 {[%clk 0:02:20.5]} 6. Nc3 {[%clk 0:02:56.7]} 6... g6 {[%clk 0:02:21]} 7.
Bg2 {[%clk 0:02:56.9]} 7... Bg7 {[%clk 0:02:21.6]} 8. Nf3 {[%clk 0:02:57.4]}
8... O-O {[%clk 0:02:22.2]} 9. O-O {[%clk 0:02:57.8]} 9... Re8 {[%clk
0:02:22.2]} 10. Bf4 {[%clk 0:02:56.6]} 10... Ne4 {[%clk 0:02:22.4]} 11. Nxe4
{[%clk 0:02:46.9]} 11... Rxe4 {[%clk 0:02:23.3]} 12. Nd2 {[%clk 0:02:41.6]}
12... Rb4 {[%clk 0:02:22.8]} 13. Rb1 {[%clk 0:02:34.4]} 13... Rxb2 {[%clk
0:02:22.3]} 14. Rxb2 {[%clk 0:02:31.3]} 14... Bxb2 {[%clk 0:02:23.2]} 15. Nc4
{[%clk 0:02:31.4]} 15... Bd4 {[%clk 0:02:14.3]} 16. Nxd6 {[%clk 0:02:14.6]}
16... Nd7 {[%clk 0:02:05.9]} 17. Qd2 {[%clk 0:01:54.2]} 17... Ne5 {[%clk
0:02:04.3]} 18. e3 {[%clk 0:01:43.2]} 18... Qxd6 {[%clk 0:01:40.7]} 19. exd4
{[%clk 0:01:41.7]} 19... cxd4 {[%clk 0:01:35.7]} 20. Qxd4 {[%clk 0:01:41.1]}
20... f6 {[%clk 0:01:33.2]} 21. Re1 {[%clk 0:01:34.4]} 21... Bf5 {[%clk
0:01:27.3]} 22. Bxe5 {[%clk 0:01:23.1]} 22... fxe5 {[%clk 0:01:27.6]} 23. Rxe5
{[%clk 0:01:23]} 23... Rc8 {[%clk 0:01:25]} 24. h3 {[%clk 0:01:13.1]} 24... Rc1+
{[%clk 0:01:23]} 25. Kh2 {[%clk 0:01:12.9]} 25... Rc2 {[%clk 0:01:22.7]} 26.
Re8+ {[%clk 0:00:57.8]} 26... Kf7 {[%clk 0:01:22.6]} 27. Qh8 {[%clk 0:00:57.5]}
27... Bd7 {[%clk 0:01:16.8]} 28. Qg8+ {[%clk 0:00:52.2]} 28... Kf6 {[%clk
0:01:16.9]} 29. Rf8+ {[%clk 0:00:48.6]} 29... Kg5 {[%clk 0:01:00.3]} 30. Qxh7
{[%clk 0:00:38.8]} 30... Qxf8 {[%clk 0:00:57.8]} 31. Qh4+ {[%clk 0:00:38.5]}
31... Kf5 {[%clk 0:00:58.1]} 32. Qf4# {[%clk 0:00:38.4]} 1-0